fUST/lending_fUST_20250221
["ID","MTS","AMOUNT","RATE_DAILY","PERIOD"]
[353854255,1740095441560,-330.96217767,0.00013945,2]
[353854256,1740095441569,-500.0,0.00013945,2]
[353854257,1740095441579,-500.0,0.00013945,2]
[353854258,1740095441589,-500.0,0.00013945,2]
[353854259,1740095441601,-500.0,0.00013945,2]
[353854260,1740095441611,-500.0,0.00013945,2]
[353854261,1740095441620,-500.0,0.00013945,2]
[353854262,1740095441630,-500.0,0.00013945,2]
[353854263,1740095441641,-500.0,0.00013945,2]
[353854264,1740095441650,-500.0,0.00013945,2]
[353854265,1740095441660,-500.0,0.00013945,2]
[353854266,1740095441670,-500.0,0.00013945,2]
[353854267,1740095441679,-597.02,0.00013945,2]
[353854268,1740095441689,-770.1,0.00013945,2]
[353854269,1740095441699,-500.0,0.00013945,2]
[353854270,1740095441708,-723.58,0.00013945,2]
[353854271,1740095441717,-534.41,0.00013945,2]
[353854272,1740095441727,-500.0,0.00013945,2]
[353854273,1740095441736,-500.0,0.00013945,2]
[353854274,1740095441746,-500.0,0.00013945,2]
[353854275,1740095441755,-500.0,0.00013945,2]
[353854276,1740095441764,-967.39,0.00013945,2]
[353854277,1740095441774,-549.45,0.00013945,2]
[353854278,1740095441783,-1103.23,0.00013945,2]
[353854279,1740095441794,-500.0,0.00013945,2]
[353854280,1740095441803,-500.0,0.00013945,2]
[353854281,1740095441813,-560.37,0.00013945,2]
[353854282,1740095441823,-676.39,0.00013945,2]
[353854283,1740095441833,-500.0,0.00013945,2]
[353854284,1740095441843,-541.38,0.00013945,2]
[353854285,1740095441853,-503.8,0.00013945,2]
[353854286,1740095441862,-1047.84,0.00013945,2]
[353854287,1740095441872,-500.0,0.00013945,2]
[353854288,1740095441881,-500.0,0.00013945,2]
[353854289,1740095441891,-841.65,0.00013945,2]
[353854290,1740095441901,-500.0,0.00013945,2]
[353854291,1740095441911,-500.0,0.00013945,2]
[353854292,1740095441920,-500.0,0.00013945,2]
[353854293,1740095441930,-500.0,0.00013945,2]
[353854294,1740095441939,-570.4,0.00013945,2]
[353854295,1740095441949,-500.0,0.00013945,2]
[353854296,1740095441959,-500.0,0.00013945,2]
[353854297,1740095441968,-500.0,0.00013945,2]
[353854298,1740095441978,-500.0,0.00013945,2]
[353854299,1740095441987,-500.0,0.00013945,2]
[353854300,1740095441997,-1938.37,0.00013945,2]
[353854301,1740095442006,-500.0,0.00013945,2]
[353854302,1740095442015,-500.0,0.00013945,2]
[353854303,1740095442025,-593.82,0.00013945,2]
[353854304,1740095442035,-7050.85,0.00013945,2]
[353854305,1740095442045,-2996.8,0.00013945,2]
[353854306,1740095442060,-1145.47,0.00013945,2]
[353854307,1740095442070,-1487.23,0.00013945,2]
[353854308,1740095442080,-3493.13,0.00013945,2]
[353854309,1740095442090,-500.0,0.00013945,2]
[353854310,1740095442099,-1176.19,0.00013945,2]
[353854311,1740095442109,-38310.27,0.00013945,2]
[353854312,1740095442119,-795.74,0.00013945,2]
[353854313,1740095442128,-500.0,0.00013945,2]
[353854314,1740095442140,-1798.11,0.00013945,2]
[353854315,1740095442149,-503.03,0.00013945,2]
[353854316,1740095442159,-13509.4,0.00013945,2]
[353854317,1740095442168,-2522.59,0.00013945,2]
[353854318,1740095442179,-500.0,0.00013945,2]
[353854319,1740095442190,-935.19,0.00013945,2]
[353854320,1740095442199,-1508.34,0.00013945,2]
[353854321,1740095442208,-1209.86,0.00013945,2]
[353854322,1740095442218,-840.39,0.00013945,2]
[353854323,1740095442228,-1181.45,0.00013945,2]
[353854324,1740095442238,-3237.47,0.00013945,2]
[353854325,1740095442248,-6388.26,0.00013945,2]
[353854326,1740095442258,-509.15,0.00013945,2]
[353854327,1740095442267,-3258.4,0.00013945,2]
[353854328,1740095442278,-3411.37,0.00013945,2]
[353854329,1740095442287,-539.08,0.00013945,2]
[353854330,1740095442297,-633.3,0.00013945,2]
[353854331,1740095442307,-500.0,0.00013945,2]
[353854332,1740095442316,-1844.13,0.00013945,2]
[353854333,1740095442326,-500.0,0.00013945,2]
[353854334,1740095442335,-1148.55,0.00013945,2]
[353854335,1740095442345,-793.49,0.00013945,2]
[353854336,1740095442354,-610.58,0.00013945,2]
[353854337,1740095442364,-1904.41,0.00013945,2]
[353854338,1740095442373,-500.0,0.00013945,2]
[353854339,1740095442383,-1016.61,0.00013945,2]
[353854340,1740095442392,-537.73,0.00013945,2]
[353854341,1740095442402,-2226.56,0.00013945,2]
[353854342,1740095442411,-506.77,0.00013945,2]
[353854343,1740095442421,-1934.19,0.00013945,2]
[353854344,1740095442430,-619.18273082,0.00013945,2]
[353854345,1740095442531,-2190.09,0.00013945,2]
[353854346,1740095442553,-500.0,0.00013945,2]
[353854347,1740095442563,-5448.61,0.00013945,2]
[353854348,1740095442574,-522.5,0.00013945,2]
[353854349,1740095442584,-500.0,0.00013945,2]
[353854350,1740095442594,-700.96,0.00013945,2]
[353854351,1740095442603,-16769.03,0.00013945,2]
[353854353,1740095442613,-1735.92,0.00013945,2]
[353854355,1740095442623,-500.0,0.00013945,2]
[353854357,1740095442632,-500.0,0.00013945,2]
[353854359,1740095442642,-500.0,0.00013945,2]
[353854362,1740095442652,-500.0,0.00013945,2]
[353854365,1740095442661,-836.75,0.00013945,2]
[353854367,1740095442672,-500.0,0.00013945,2]
[353854368,1740095442682,-1956.0,0.00013945,2]
[353854369,1740095442692,-500.0,0.00013945,2]
[353854370,1740095442702,-500.0,0.00013945,2]
[353854371,1740095442711,-500.0,0.00013945,2]
[353854372,1740095442722,-1248.90148633,0.00014009,2]
[353854373,1740095442732,-500.0,0.00014027,2]
[353854374,1740095442741,-500.0,0.00014027,2]
[353854375,1740095442751,-500.0,0.00014027,2]
[353854376,1740095442761,-500.0,0.00014027,2]
[353854377,1740095442770,-500.0,0.00014027,2]
[353854378,1740095442779,-500.0,0.00014027,2]
[353854379,1740095442789,-500.0,0.00014027,2]
[353854380,1740095442798,-500.0,0.00014027,2]
[353854381,1740095442807,-500.0,0.00014027,2]
[353854382,1740095442816,-500.0,0.00014027,2]
[353854383,1740095442825,-597.02,0.00014027,2]
[353854384,1740095442834,-770.1,0.00014027,2]
[353854385,1740095442843,-500.0,0.00014027,2]
[353854386,1740095442853,-723.58,0.00014027,2]
[353854387,1740095442863,-534.41,0.00014027,2]
[353854388,1740095442872,-500.0,0.00014027,2]
[353854389,1740095442881,-500.0,0.00014027,2]
[353854391,1740095442890,-500.0,0.00014027,2]
[353854392,1740095442900,-500.0,0.00014027,2]
[353854393,1740095442909,-967.39,0.00014027,2]
[353854395,1740095442919,-549.45,0.00014027,2]
[353854396,1740095442930,-1103.23,0.00014027,2]
[353854398,1740095442940,-500.0,0.00014027,2]
[353854400,1740095442950,-500.0,0.00014027,2]
[353854402,1740095442960,-560.37,0.00014027,2]
[353854404,1740095442969,-676.39,0.00014027,2]
[353854405,1740095442979,-500.0,0.00014027,2]
[353854407,1740095442989,-541.38,0.00014027,2]
[353854408,1740095442999,-503.8,0.00014027,2]
[353854410,1740095443008,-1047.84,0.00014027,2]
[353854411,1740095443019,-500.0,0.00014027,2]
[353854413,1740095443030,-500.0,0.00014027,2]
[353854414,1740095443040,-841.65,0.00014027,2]
[353854416,1740095443051,-500.0,0.00014027,2]
[353854418,1740095443066,-500.0,0.00014027,2]
[353854420,1740095443077,-500.0,0.00014027,2]
[353854421,1740095443087,-500.0,0.00014027,2]
[353854422,1740095443097,-570.4,0.00014027,2]
[353854423,1740095443107,-500.0,0.00014027,2]
[353854424,1740095443118,-500.0,0.00014027,2]
[353854425,1740095443128,-500.0,0.00014027,2]
[353854426,1740095443140,-500.0,0.00014027,2]
[353854427,1740095443150,-500.0,0.00014027,2]
[353854428,1740095443159,-1938.37,0.00014027,2]
[353854429,1740095443169,-500.0,0.00014027,2]
[353854430,1740095443180,-500.0,0.00014027,2]
[353854431,1740095443191,-593.82,0.00014027,2]
[353854432,1740095443204,-7050.85,0.00014027,2]
[353854433,1740095443214,-2996.8,0.00014027,2]
[353854434,1740095443224,-1145.47,0.00014027,2]
[353854435,1740095443234,-1487.23,0.00014027,2]
[353854436,1740095443243,-3493.13,0.00014027,2]
[353854437,1740095443253,-500.0,0.00014027,2]
[353854438,1740095443263,-1176.19,0.00014027,2]
[353854439,1740095443272,-38310.27,0.00014027,2]
[353854440,1740095443283,-795.74,0.00014027,2]
[353854441,1740095443292,-500.0,0.00014027,2]
[353854442,1740095443302,-1798.11,0.00014027,2]
[353854443,1740095443312,-503.03,0.00014027,2]
[353854444,1740095443321,-13509.4,0.00014027,2]
[353854445,1740095443330,-2522.59,0.00014027,2]
[353854446,1740095443340,-500.0,0.00014027,2]
[353854447,1740095443349,-935.19,0.00014027,2]
[353854448,1740095443364,-1508.34,0.00014027,2]
[353854449,1740095443373,-1209.86,0.00014027,2]
[353854450,1740095443383,-840.39,0.00014027,2]
[353854451,1740095443393,-1181.45,0.00014027,2]
[353854452,1740095443403,-3237.47,0.00014027,2]
[353854453,1740095443413,-6388.26,0.00014027,2]
[353854454,1740095443422,-509.15,0.00014027,2]
[353854455,1740095443432,-3258.4,0.00014027,2]
[353854456,1740095443442,-3411.37,0.00014027,2]
[353854457,1740095443452,-539.08,0.00014027,2]
[353854458,1740095443463,-633.3,0.00014027,2]
[353854459,1740095443472,-500.0,0.00014027,2]
[353854460,1740095443485,-1844.13,0.00014027,2]
[353854461,1740095443494,-500.0,0.00014027,2]
[353854462,1740095443504,-1148.55,0.00014027,2]
[353854463,1740095443515,-793.49,0.00014027,2]
[353854464,1740095443525,-610.58,0.00014027,2]
[353854466,1740095443535,-1904.41,0.00014027,2]
[353854467,1740095443545,-500.0,0.00014027,2]
[353854468,1740095443555,-1016.61,0.00014027,2]
[353854470,1740095443564,-537.73,0.00014027,2]
[353854471,1740095443574,-2226.56,0.00014027,2]
[353854474,1740095443584,-506.77,0.00014027,2]
[353854476,1740095443593,-1934.19,0.00014027,2]
[353854477,1740095443603,-2190.09,0.00014027,2]
[353854478,1740095443613,-500.0,0.00014027,2]
[353854479,1740095443623,-5448.61,0.00014027,2]
[353854480,1740095443632,-522.5,0.00014027,2]
[353854481,1740095443641,-500.0,0.00014027,2]
[353854483,1740095443651,-700.96,0.00014027,2]
[353854484,1740095443660,-16769.03,0.00014027,2]
[353854485,1740095443671,-1735.92,0.00014027,2]
[353854486,1740095443680,-500.0,0.00014027,2]
[353854487,1740095443690,-500.0,0.00014027,2]
[353854488,1740095443699,-500.0,0.00014027,2]
[353854489,1740095443709,-500.0,0.00014027,2]
[353854490,1740095443718,-836.75,0.00014027,2]
[353854491,1740095443727,-1956.0,0.00014027,2]
[353854492,1740095443737,-500.0,0.00014027,2]
[353854493,1740095443747,-500.0,0.00014027,2]
[353854494,1740095443757,-500.0,0.00014027,2]
[353854495,1740095443767,-500.0,0.00014027,2]
[353854496,1740095443777,-7438.69753278,0.0001405,2]
[353854497,1740095443787,-151.0,0.000141,2]
[353854498,1740095443797,-500.0,0.00014109,2]
[353854500,1740095443806,-500.0,0.00014109,2]
[353854501,1740095443815,-500.0,0.00014109,2]
[353854502,1740095443826,-500.0,0.00014109,2]
[353854503,1740095443836,-500.0,0.00014109,2]
[353854504,1740095443845,-500.0,0.00014109,2]
[353854505,1740095443854,-500.0,0.00014109,2]
[353854507,1740095443864,-246.39127442,0.00014109,2]
[353854508,1740095443873,-500.0,0.00014109,2]
[353854509,1740095443882,-500.0,0.00014109,2]
[353854510,1740095443892,-597.02,0.00014109,2]
[353854511,1740095443901,-770.1,0.00014109,2]
[353854512,1740095443911,-500.0,0.00014109,2]
[353854513,1740095443921,-723.58,0.00014109,2]
[353854514,1740095443931,-534.41,0.00014109,2]
[353854515,1740095443940,-500.0,0.00014109,2]
[353854516,1740095443950,-500.0,0.00014109,2]
[353854517,1740095443960,-500.0,0.00014109,2]
[353854518,1740095443970,-967.39,0.00014109,2]
[353854519,1740095443980,-549.45,0.00014109,2]
[353854520,1740095443989,-1103.23,0.00014109,2]
[353854521,1740095443999,-500.0,0.00014109,2]
[353854522,1740095444009,-500.0,0.00014109,2]
[353854523,1740095444019,-560.37,0.00014109,2]
[353854524,1740095444028,-676.39,0.00014109,2]
[353854525,1740095444038,-500.0,0.00014109,2]
[353854526,1740095444047,-541.38,0.00014109,2]
[353854527,1740095444061,-503.8,0.00014109,2]
[353854528,1740095444070,-1047.84,0.00014109,2]
[353854529,1740095444079,-500.0,0.00014109,2]
[353854530,1740095444089,-500.0,0.00014109,2]
[353854531,1740095444099,-841.65,0.00014109,2]
[353854532,1740095444109,-500.0,0.00014109,2]
[353854533,1740095444119,-500.0,0.00014109,2]
[353854534,1740095444128,-500.0,0.00014109,2]
[353854535,1740095444138,-500.0,0.00014109,2]
[353854536,1740095444148,-570.4,0.00014109,2]
[353854537,1740095444158,-500.0,0.00014109,2]
[353854538,1740095444167,-500.0,0.00014109,2]
[353854539,1740095444178,-500.0,0.00014109,2]
[353854540,1740095444187,-500.0,0.00014109,2]
[353854541,1740095444197,-429.67719466,0.00014109,2]
[353854542,1740095444207,-1938.37,0.00014109,2]
[353854543,1740095444216,-500.0,0.00014109,2]
[353854544,1740095444226,-500.0,0.00014109,2]
[353854545,1740095444235,-593.82,0.00014109,2]
[353854546,1740095444245,-7050.85,0.00014109,2]
[353854547,1740095444254,-2996.8,0.00014109,2]
[353854548,1740095444265,-1145.47,0.00014109,2]
[353854549,1740095444274,-1487.23,0.00014109,2]
[353854550,1740095444284,-3493.13,0.00014109,2]
[353854551,1740095444294,-500.0,0.00014109,2]
[353854552,1740095444303,-1176.19,0.00014109,2]
[353854553,1740095444312,-38310.27,0.00014109,2]
[353854554,1740095444322,-795.74,0.00014109,2]
[353854555,1740095444331,-500.0,0.00014109,2]
[353854556,1740095444341,-1798.11,0.00014109,2]
[353854557,1740095444350,-503.03,0.00014109,2]
[353854558,1740095444360,-13509.4,0.00014109,2]
[353854559,1740095444369,-2522.59,0.00014109,2]
[353854560,1740095444379,-500.0,0.00014109,2]
[353854561,1740095444388,-935.19,0.00014109,2]
[353854562,1740095444397,-1508.34,0.00014109,2]
[353854563,1740095444407,-1209.86,0.00014109,2]
[353854564,1740095444416,-840.39,0.00014109,2]
[353854565,1740095444426,-1181.45,0.00014109,2]
[353854566,1740095444435,-3237.47,0.00014109,2]
[353854567,1740095444445,-6388.26,0.00014109,2]
[353854568,1740095444454,-509.15,0.00014109,2]
[353854569,1740095444464,-3258.4,0.00014109,2]
[353854570,1740095444473,-3411.37,0.00014109,2]
[353854571,1740095444484,-539.08,0.00014109,2]
[353854572,1740095444494,-500.0,0.00014109,2]
[353854573,1740095444503,-633.3,0.00014109,2]
[353854574,1740095444513,-1844.13,0.00014109,2]
[353854575,1740095444522,-500.0,0.00014109,2]
[353854576,1740095444532,-1148.55,0.00014109,2]
[353854577,1740095444542,-793.49,0.00014109,2]
[353854578,1740095444551,-610.58,0.00014109,2]
[353854579,1740095444561,-1904.41,0.00014109,2]
[353854580,1740095444570,-500.0,0.00014109,2]
[353854581,1740095444580,-1016.61,0.00014109,2]
[353854582,1740095444589,-537.73,0.00014109,2]
[353854583,1740095444599,-2226.56,0.00014109,2]
[353854584,1740095444608,-506.77,0.00014109,2]
[353854585,1740095444617,-1934.19,0.00014109,2]
[353854586,1740095444627,-2190.09,0.00014109,2]
[353854587,1740095444637,-500.0,0.00014109,2]
[353854588,1740095444646,-5448.61,0.00014109,2]
[353854589,1740095444656,-522.5,0.00014109,2]
[353854590,1740095444665,-500.0,0.00014109,2]
[353854591,1740095444676,-700.96,0.00014109,2]
[353854592,1740095444685,-16769.03,0.00014109,2]
[353854593,1740095444695,-1735.92,0.00014109,2]
[353854594,1740095444705,-500.0,0.00014109,2]
[353854595,1740095444714,-500.0,0.00014109,2]
[353854596,1740095444724,-500.0,0.00014109,2]
[353854597,1740095444734,-500.0,0.00014109,2]
[353854598,1740095444743,-836.75,0.00014109,2]
[353854599,1740095444752,-500.0,0.00014109,2]
[353854600,1740095444766,-1956.0,0.00014109,2]
[353854601,1740095444776,-242.45975678,0.00014109,2]
[353854602,1740095444787,-500.0,0.00014109,2]
[353854603,1740095444797,-500.0,0.00014109,2]
[353854604,1740095444807,-540.58991506,0.00014127,2]
[353854605,1740095444816,-600.0,0.00014164,2]
[353854606,1740095444825,-500.33894546,0.00014173,2]
[353854607,1740095444836,-500.0,0.00014173,2]
[353854608,1740095444945,-500.67238242,0.00014173,2]
[353854609,1740095444955,-500.0,0.00014173,2]
[353854610,1740095444966,-500.0,0.00014173,2]
[353854611,1740095444976,-500.0,0.00014173,2]
[353854612,1740095444986,-500.0,0.00014173,2]
[353854613,1740095444995,-500.0,0.00014173,2]
[353854614,1740095445006,-500.0,0.00014173,2]
[353854615,1740095445016,-500.0,0.00014173,2]
[353854616,1740095445026,-156.63025775,0.00014173,2]
[353854617,1740095445037,-416.79402787,0.00014173,2]
[353854618,1740095445048,-500.0,0.00014173,2]
[353854619,1740095445062,-162.97630381,0.00014173,2]
[353854620,1740095445071,-504.86614696,0.00014173,2]
[353854621,1740095445081,-500.0,0.00014173,2]
[353854622,1740095445092,-500.0,0.00014173,2]
[353854623,1740095445103,-500.0,0.00014173,2]
[353854624,1740095445112,-500.0,0.00014173,2]
[353854625,1740095445122,-500.0,0.00014173,2]
[353854626,1740095445133,-500.0,0.00014173,2]
[353854627,1740095445143,-500.0,0.00014173,2]
[353854628,1740095445153,-500.0,0.00014173,2]
[353854629,1740095445162,-250.76985661,0.00014173,2]
[353854630,1740095445173,-500.0,0.00014173,2]
[353854631,1740095445185,-500.0,0.00014173,2]
[353854632,1740095445195,-500.0,0.00014173,2]
[353854633,1740095445205,-500.0,0.00014173,2]
[353854634,1740095445215,-170.82861777,0.00014173,2]
[353854635,1740095445224,-500.0,0.00014173,2]
[353854636,1740095445234,-420.0,0.00014189,2]
[353854637,1740095445244,-500.0,0.00014191,2]
[353854638,1740095445254,-500.0,0.00014191,2]
[353854639,1740095445264,-500.0,0.00014191,2]
[353854640,1740095445274,-500.0,0.00014191,2]
[353854641,1740095445285,-500.0,0.00014191,2]
[353854642,1740095445294,-500.0,0.00014191,2]
[353854643,1740095445305,-480.69922957,0.00014191,2]
[353854644,1740095445315,-500.0,0.00014191,2]
[353854645,1740095445324,-597.02,0.00014191,2]
[353854646,1740095445334,-770.1,0.00014191,2]
[353854647,1740095445344,-500.0,0.00014191,2]
[353854648,1740095445353,-723.58,0.00014191,2]
[353854649,1740095445364,-534.41,0.00014191,2]
[353854650,1740095445374,-500.0,0.00014191,2]
[353854651,1740095445384,-500.0,0.00014191,2]
[353854652,1740095445394,-500.0,0.00014191,2]
[353854653,1740095445405,-967.39,0.00014191,2]
[353854654,1740095445414,-549.45,0.00014191,2]
[353854655,1740095445425,-1103.23,0.00014191,2]
[353854656,1740095445434,-500.0,0.00014191,2]
[353854657,1740095445444,-500.0,0.00014191,2]
[353854658,1740095445454,-560.37,0.00014191,2]
[353854659,1740095445464,-676.39,0.00014191,2]
[353854660,1740095445474,-500.0,0.00014191,2]
[353854661,1740095445484,-541.38,0.00014191,2]
[353854662,1740095445494,-503.8,0.00014191,2]
[353854663,1740095445504,-1047.84,0.00014191,2]
[353854664,1740095445514,-500.0,0.00014191,2]
[353854665,1740095445524,-500.0,0.00014191,2]
[353854666,1740095445533,-841.65,0.00014191,2]
[353854667,1740095445543,-500.0,0.00014191,2]
[353854668,1740095445552,-500.0,0.00014191,2]
[353854669,1740095445561,-500.0,0.00014191,2]
[353854670,1740095445571,-500.0,0.00014191,2]
[353854671,1740095445580,-570.4,0.00014191,2]
[353854672,1740095445589,-500.0,0.00014191,2]
[353854673,1740095445599,-500.0,0.00014191,2]
[353854674,1740095445609,-500.0,0.00014191,2]
[353854675,1740095445618,-500.0,0.00014191,2]
[353854676,1740095445627,-1938.37,0.00014191,2]
[353854678,1740095445636,-500.0,0.00014191,2]
[353854679,1740095445645,-500.0,0.00014191,2]
[353854680,1740095445655,-593.82,0.00014191,2]
[353854681,1740095445665,-7050.85,0.00014191,2]
[353854682,1740095445677,-2996.8,0.00014191,2]
[353854683,1740095445686,-1145.47,0.00014191,2]
[353854684,1740095445696,-1487.23,0.00014191,2]
[353854685,1740095445706,-3493.13,0.00014191,2]
[353854686,1740095445715,-500.0,0.00014191,2]
[353854687,1740095445724,-1176.19,0.00014191,2]
[353854688,1740095445734,-38310.27,0.00014191,2]
[353854689,1740095445745,-795.74,0.00014191,2]
[353854690,1740095445754,-500.0,0.00014191,2]
[353854691,1740095445764,-1798.11,0.00014191,2]
[353854692,1740095445774,-503.03,0.00014191,2]
[353854693,1740095445784,-13509.4,0.00014191,2]
[353854694,1740095445794,-2522.59,0.00014191,2]
[353854695,1740095445803,-500.0,0.00014191,2]
[353854696,1740095445813,-935.19,0.00014191,2]
[353854697,1740095445823,-1508.34,0.00014191,2]
[353854699,1740095445832,-840.39,0.00014191,2]
[353854701,1740095445842,-1209.86,0.00014191,2]
[353854702,1740095445852,-1181.45,0.00014191,2]
[353854703,1740095445861,-3237.47,0.00014191,2]
[353854705,1740095445871,-6388.26,0.00014191,2]
[353854706,1740095445880,-509.15,0.00014191,2]
[353854707,1740095445889,-3258.4,0.00014191,2]
[353854708,1740095445899,-3411.37,0.00014191,2]
[353854709,1740095445909,-539.08,0.00014191,2]
[353854710,1740095445920,-633.3,0.00014191,2]
[353854711,1740095445932,-500.0,0.00014191,2]
[353854712,1740095445941,-1844.13,0.00014191,2]
[353854713,1740095445951,-500.0,0.00014191,2]
[353854714,1740095445961,-1148.55,0.00014191,2]
[353854715,1740095445971,-793.49,0.00014191,2]
[353854716,1740095445980,-610.58,0.00014191,2]
[353854717,1740095445990,-1904.41,0.00014191,2]
[353854718,1740095446000,-220.53,0.00014191,2]
[353854719,1740095446010,-1016.61,0.00014191,2]
[353854720,1740095446020,-537.73,0.00014191,2]
[353854721,1740095446031,-2226.56,0.00014191,2]
[353854722,1740095446040,-506.77,0.00014191,2]
[353854724,1740095446050,-1934.19,0.00014191,2]
[353854725,1740095446064,-2190.09,0.00014191,2]
[353854726,1740095446074,-500.0,0.00014191,2]
[353854727,1740095446084,-5448.61,0.00014191,2]
[353854728,1740095446094,-522.5,0.00014191,2]
[353854729,1740095446103,-500.0,0.00014191,2]
[353854731,1740095446113,-700.96,0.00014191,2]
[353854733,1740095446123,-16769.03,0.00014191,2]
[353854734,1740095446132,-1735.92,0.00014191,2]
[353854735,1740095446143,-500.0,0.00014191,2]
[353854736,1740095446153,-500.0,0.00014191,2]
[353854737,1740095446163,-500.0,0.00014191,2]
[353854738,1740095446175,-500.0,0.00014191,2]
[353854739,1740095446186,-836.75,0.00014191,2]
[353854740,1740095446196,-1956.0,0.00014191,2]
[353854741,1740095446205,-500.0,0.00014191,2]
[353854742,1740095446215,-500.0,0.00014191,2]
[353854743,1740095446225,-151.0,0.000142,2]
[353854744,1740095446235,-151.0,0.000142,2]
[353854745,1740095446244,-2246.54732415,0.00014256,2]
[353854746,1740095446254,-500.0,0.00014273,2]
[353854747,1740095446264,-427.22317382,0.00014273,2]
[353854748,1740095446274,-500.0,0.00014273,2]
[353854749,1740095446283,-500.0,0.00014273,2]
[353854750,1740095446292,-500.0,0.00014273,2]
[353854751,1740095446302,-178.33142665,0.00014273,2]
[353854752,1740095446312,-597.02,0.00014273,2]
[353854753,1740095446321,-770.1,0.00014273,2]
[353854754,1740095446331,-500.0,0.00014273,2]
[353854755,1740095446340,-723.58,0.00014273,2]
[353854756,1740095446350,-534.41,0.00014273,2]
[353854757,1740095446360,-500.0,0.00014273,2]
[353854758,1740095446370,-500.0,0.00014273,2]
[353854759,1740095446379,-500.0,0.00014273,2]
[353854760,1740095446389,-967.39,0.00014273,2]
[353854761,1740095446399,-549.45,0.00014273,2]
[353854762,1740095446408,-1103.23,0.00014273,2]
[353854763,1740095446417,-500.0,0.00014273,2]
[353854764,1740095446428,-500.0,0.00014273,2]
[353854765,1740095446438,-560.37,0.00014273,2]
[353854766,1740095446447,-676.39,0.00014273,2]
[353854767,1740095446456,-500.0,0.00014273,2]
[353854768,1740095446466,-541.38,0.00014273,2]
[353854769,1740095446476,-503.8,0.00014273,2]
[353854770,1740095446486,-1047.84,0.00014273,2]
[353854771,1740095446496,-500.0,0.00014273,2]
[353854772,1740095446506,-500.0,0.00014273,2]
[353854773,1740095446516,-841.65,0.00014273,2]
[353854774,1740095446526,-500.0,0.00014273,2]
[353854775,1740095446536,-236.41288493,0.00014273,2]
[353854776,1740095446545,-500.0,0.00014273,2]
[353854777,1740095446555,-500.0,0.00014273,2]
[353854778,1740095446565,-570.4,0.00014273,2]
[353854779,1740095446574,-500.0,0.00014273,2]
[353854780,1740095446584,-500.0,0.00014273,2]
[353854781,1740095446594,-500.0,0.00014273,2]
[353854782,1740095446603,-500.0,0.00014273,2]
[353854783,1740095446613,-1938.37,0.00014273,2]
[353854784,1740095446623,-500.0,0.00014273,2]
[353854785,1740095446633,-500.0,0.00014273,2]
[353854786,1740095446643,-593.82,0.00014273,2]
[353854787,1740095446652,-7050.85,0.00014273,2]
[353854788,1740095446662,-2996.8,0.00014273,2]
[353854789,1740095446671,-1145.47,0.00014273,2]
[353854790,1740095446681,-1487.23,0.00014273,2]